bitfinex-derivatives/quotes_ETHF0:USTF0_20260113
["timestamp","ask_amount","ask_price","bid_price","bid_amount"]
[1768296171956,1.02990491,3144.1,3142.4,1.651572]
[1768296172264,1.02990491,3144.1,3142.1,1.07762452]
[1768296172962,1.02990491,3144.1,3142.0,2.72919652]
[1768296173167,1.02990491,3144.1,3142.1,1.07762452]
[1768296173967,0.00398761,3143.6,3142.1,1.07762452]
[1768296178567,0.00398761,3143.6,3142.4,2.72919652]
[1768296179071,0.00398761,3143.6,3142.4,1.07762452]
[1768296179368,0.00398761,3143.6,3142.5,1.07762452]
[1768296179968,0.00398761,3143.6,3142.3,1.651572]
[1768296180168,0.00398761,3143.6,3142.1,0.15928]
[1768296180363,0.00398761,3143.6,3142.0,1.07762452]
[1768296183368,0.00398761,3143.6,3141.7,0.16337677]
[1768296183369,1.0259173,3142.8,3141.7,0.00407677]
[1768296183562,1.0259173,3142.4,3141.6,0.62581135]
[1768296183767,0.00398761,3141.7,3140.5,1.07762452]
[1768296184568,0.00774396,3141.7,3140.5,1.08021498]
[1768296185970,0.00774396,3141.7,3140.7,1.12434451]
[1768296186469,0.00774396,3141.7,3140.5,1.12693497]
[1768296187372,0.00774396,3141.7,3140.8,1.12434451]
[1768296187569,1.18544596,3143.1,3141.2,1.12434451]
[1768296188269,1.18544596,3142.9,3140.7,1.12434451]
[1768296188474,0.00253362,3142.9,3141.2,1.12434451]
[1768296188776,1.18797958,3142.9,3140.6,1.12434451]
[1768296189569,1.18797958,3142.9,3140.7,1.12434451]
[1768296190175,1.18544596,3142.8,3140.7,1.12434451]
[1768296190880,0.00253362,3142.9,3140.7,1.12434451]
[1768296190881,4.55553362,3142.9,3140.7,1.12434451]
[1768296191173,0.00253362,3142.9,3140.7,1.12434451]
[1768296191582,0.00253362,3142.9,3140.8,1.12434451]
[1768296192282,0.86687218,3142.8,3140.8,1.12434451]
[1768296192483,0.00253362,3142.9,3140.8,1.12434451]
[1768296192680,0.86686531,3142.8,3140.8,1.12434451]
[1768296192882,0.00253362,3142.9,3140.8,1.12434451]
[1768296193080,0.00253362,3142.9,3141.2,1.12434451]
[1768296199977,0.86916673,3142.8,3141.2,1.12434451]
[1768296200178,0.00253362,3142.9,3141.2,1.12434451]
[1768296200483,0.8692739,3142.8,3141.2,1.12434451]
[1768296200783,0.00253362,3142.9,3141.2,1.12434451]
[1768296200976,0.8692695,3142.8,3141.2,1.12434451]
[1768296201287,0.00253362,3142.9,3141.2,1.12434451]
[1768296201578,0.86946352,3142.8,3141.2,1.12434451]
[1768296201780,0.86946352,3142.7,3141.2,1.12434451]
[1768296201985,0.00253362,3142.9,3141.2,1.12434451]
[1768296202280,0.86944986,3142.8,3141.2,1.12434451]
[1768296202486,0.86962821,3142.7,3141.2,1.12434451]
[1768296202683,0.00253362,3142.9,3141.2,1.12434451]
[1768296202883,1.17787788,3142.7,3140.6,1.13897282]
[1768296203085,2.82944988,3142.3,3140.6,1.13897282]
[1768296203280,0.86964967,3142.2,3140.6,1.13897282]
[1768296203479,1.368,3142.1,3140.5,0.00259046]
[1768296203682,0.86964967,3142.0,3140.5,0.00259046]
[1768296204986,0.86964967,3141.9,3140.5,0.00259046]
[1768296205188,1.368,3142.1,3140.5,0.00259046]
[1768296205391,0.86966686,3142.0,3140.5,0.00259046]
[1768296205591,0.86966686,3141.9,3140.5,0.00259046]
[1768296205789,1.368,3142.1,3140.5,0.00259046]
[1768296205988,0.86966664,3142.0,3140.5,1.14156328]
[1768296206187,0.86966664,3141.9,3140.5,1.14156328]
[1768296206391,2.54587788,3142.3,3140.5,1.14156328]
[1768296206592,0.86977648,3142.2,3140.5,1.14156328]
[1768296206794,0.86977648,3142.1,3140.5,1.14156328]
[1768296207091,0.86977648,3142.0,3140.5,1.14156328]
[1768296207284,2.54587788,3142.3,3140.5,1.14156328]
[1768296207485,0.86997243,3142.2,3140.5,1.14156328]
[1768296207687,0.86997243,3142.1,3140.5,1.14156328]
[1768296207886,0.86997243,3142.0,3140.5,1.14156328]
[1768296208086,0.86997243,3141.9,3140.5,1.14156328]
[1768296208282,2.54587788,3142.2,3140.5,1.14156328]
[1768296208490,0.87006049,3142.1,3140.5,1.14156328]
[1768296208688,0.87006049,3142.0,3140.5,1.14156328]
[1768296208888,0.87006049,3141.9,3140.5,1.14156328]
[1768296209089,2.54587788,3142.2,3140.5,1.14156328]
[1768296209282,0.87039614,3142.1,3140.5,1.14156328]
[1768296209488,2.04827402,3142.0,3140.5,0.00259046]
[1768296209683,0.87039614,3141.9,3140.5,0.00259046]
[1768296209884,1.368,3142.2,3140.5,1.14156328]
[1768296210089,0.87039534,3142.1,3140.5,1.14156328]
[1768296210289,0.87039534,3142.0,3140.5,1.14156328]
[1768296210596,0.87039534,3141.9,3140.5,1.14156328]
[1768296210787,1.368,3142.1,3140.5,1.14156328]
[1768296210788,2.54587788,3142.1,3140.5,0.00259046]
[1768296210988,0.87036084,3142.0,3140.5,0.00259046]
[1768296211183,0.87036084,3141.9,3140.5,0.00259046]
[1768296211385,2.54587788,3142.1,3140.5,0.00259046]
[1768296211588,0.87063397,3142.0,3140.5,0.00259046]
[1768296211790,0.87063397,3141.9,3140.5,0.00259046]
[1768296212499,0.87063397,3141.9,3140.5,1.14156328]
[1768296212694,1.368,3142.0,3140.5,1.14156328]
[1768296212903,0.87281693,3141.9,3140.5,1.14156328]
[1768296213198,1.368,3142.2,3140.5,1.14156328]
[1768296213397,0.87330578,3142.1,3140.5,1.14156328]
[1768296213594,0.87330578,3142.0,3140.5,1.14156328]
[1768296213796,0.87330578,3141.9,3140.5,1.14156328]
[1768296214095,1.368,3142.2,3140.5,1.14156328]
[1768296214399,0.87390467,3142.1,3140.5,1.14156328]
[1768296214597,0.87390467,3142.0,3140.5,1.14156328]
[1768296214797,0.87390467,3141.9,3140.5,1.14156328]
[1768296215000,1.368,3142.2,3140.5,1.14156328]
[1768296215203,0.87387872,3142.1,3140.5,1.14156328]
[1768296215401,0.87387872,3142.0,3140.5,1.14156328]
[1768296215708,0.87387872,3141.9,3140.5,1.14156328]
[1768296216001,1.368,3142.2,3140.5,1.14156328]
[1768296216201,0.87386121,3142.1,3140.5,1.14156328]
[1768296216393,0.87386121,3142.0,3140.5,1.14156328]
[1768296216593,0.87386121,3141.9,3140.5,1.14156328]
[1768296216903,1.368,3142.2,3140.5,1.14156328]
[1768296217103,0.87418558,3142.1,3140.5,1.14156328]
[1768296217306,0.87418558,3142.0,3140.5,1.14156328]
[1768296217505,1.368,3142.1,3140.5,1.14156328]
[1768296217697,0.87413827,3142.0,3140.5,1.14156328]
[1768296217895,1.368,3142.1,3140.5,1.14156328]
[1768296218097,0.87413837,3142.0,3140.5,1.14156328]
[1768296218299,1.368,3142.1,3140.5,1.14156328]
[1768296218498,0.87412543,3142.0,3140.5,1.14156328]
[1768296218701,1.368,3142.1,3140.5,1.14156328]
[1768296219007,0.87412543,3142.0,3140.5,1.14156328]
[1768296219210,0.15926,3142.6,3140.5,1.14156328]
[1768296219410,1.369,3142.2,3140.8,1.26680918]
[1768296219709,0.87408438,3142.1,3140.8,1.26680918]
[1768296219902,1.369,3142.2,3140.8,1.26680918]
[1768296220096,0.87404393,3142.1,3140.8,1.26680918]
[1768296220297,1.369,3142.2,3140.8,1.26680918]
[1768296225309,1.369,3142.2,3140.8,1.42615918]
[1768296225501,1.369,3142.2,3140.8,1.26680918]
[1768296225702,0.00253362,3142.9,3141.3,2.72793098]
[1768296225907,0.8744451,3142.8,3141.3,2.72793098]
[1768296226107,0.00253362,3142.9,3141.3,2.72793098]
[1768296226307,0.87449741,3142.8,3141.3,2.72793098]
[1768296226508,0.8745067,3142.7,3141.1,0.15933]
[1768296226706,1.4611218,3142.6,3141.1,0.15933]
[1768296226907,2.76173789,3142.6,3141.1,0.15933]
[1768296227105,2.76173789,3142.6,3140.8,1.26680918]
[1768296227106,1.30061609,3142.5,3140.8,1.26680918]
[1768296227308,1.30061609,3142.4,3140.8,1.26680918]
[1768296230106,40.95925,3142.8,3140.7,1.26680918]
[1768296230308,0.8754782,3142.7,3141.0,1.26680918]
[1768296230607,0.8754782,3142.6,3141.0,1.26680918]
[1768296230813,0.8754782,3142.5,3141.0,1.26680918]
[1768296231106,1.375,3142.7,3141.0,1.26680918]
[1768296231312,0.87560386,3142.6,3141.0,2.72793098]
[1768296231513,0.87560386,3142.5,3141.0,2.72793098]
[1768296231812,1.375,3142.7,3141.0,2.72793098]
[1768296232013,0.87560662,3142.6,3141.0,1.26680918]
[1768296232314,0.87560662,3142.5,3141.0,1.26680918]
[1768296232506,0.87560662,3142.4,3141.0,1.26680918]
[1768296232706,1.375,3142.7,3141.0,1.26680918]
[1768296232907,0.87580666,3142.6,3141.0,1.26680918]
[1768296233110,0.87580666,3142.5,3141.0,1.26680918]
[1768296233310,0.87580666,3142.4,3141.0,1.26680918]
[1768296233505,1.30061609,3142.6,3141.0,1.26680918]
[1768296233720,0.87573486,3142.5,3141.0,1.26680918]
[1768296234014,0.87573486,3142.4,3141.0,1.26680918]
[1768296234216,0.00253362,3142.9,3141.3,2.72793098]
[1768296234419,2.25068628,3142.8,3141.3,2.72793098]
[1768296234620,0.87568628,3142.7,3141.3,2.72793098]
[1768296234818,0.87568628,3142.6,3141.3,2.72793098]
[1768296235014,1.375,3142.8,3141.3,2.72793098]
[1768296235215,0.87568601,3142.7,3141.3,2.72793098]
[1768296235419,0.87568601,3142.6,3141.3,2.72793098]
[1768296235616,1.375,3142.8,3141.3,2.72793098]
[1768296235816,0.87558977,3142.7,3141.3,2.72793098]
[1768296236124,0.00253362,3142.9,3141.7,1.26680918]
[1768296239019,0.00253362,3142.9,3141.5,0.15931]
[1768296239225,0.00253362,3142.9,3141.5,1.42611918]
[1768296239826,0.00253362,3142.9,3141.6,2.72793098]
[1768296240021,0.00253362,3142.9,3141.7,1.26680918]
[1768296240525,0.00253362,3142.9,3141.9,2.72793098]
[1768296241321,1.45978609,3144.4,3142.0,1.26680918]
[1768296241626,1.45978609,3144.4,3141.9,1.6204118]
[1768296241627,5.36497431,3144.2,3142.3,1.26680918]
[1768296241827,1.22923642,3144.1,3142.3,1.26680918]
[1768296242027,0.87428971,3144.0,3142.3,1.26680918]
[1768296242227,0.87428971,3143.9,3142.3,1.26680918]
[1768296242416,0.87428971,3143.8,3142.8,1.4611218]
[1768296242622,0.00394111,3143.9,3143.1,1.4611218]
[1768296242939,0.00394111,3143.9,3142.9,1.4611218]
[1768296243134,0.00394111,3143.9,3142.9,2.72793098]
[1768296243336,0.00394111,3143.9,3143.0,1.26680918]
[1768296247841,3.186,3144.6,3143.0,1.26680918]
[1768296247842,3.186,3144.6,3143.4,2.80800162]
[1768296248334,1.374,3144.8,3143.4,2.80800162]
[1768296248335,2.70912968,3145.1,3143.4,2.80800162]
[1768296248728,1.37621259,3145.1,3144.0,1.4611218]
[1768296248941,1.37621259,3145.1,3144.0,2.80800162]
[1768296249239,1.37621259,3145.1,3143.5,1.34687982]
[1768296249935,1.4611218,3144.9,3143.5,1.34687982]
[1768296250441,1.37621259,3145.1,3143.5,1.34687982]
[1768296252539,0.00321259,3145.1,3143.5,1.34687982]
[1768296253944,0.00321259,3145.1,3143.7,1.38969363]
[1768296254642,0.00321259,3145.1,3143.9,2.85081543]
[1768296254845,0.00321259,3145.1,3144.0,1.38969363]
[1768296255434,0.00321259,3145.1,3144.5,1.08010833]
[1768296256649,0.00321259,3145.1,3144.6,1.08010833]
[1768296256840,9.31332912,3147.1,3144.6,1.08010833]
[1768296257045,1.08010833,3145.5,3144.6,1.08010833]
[1768296257346,2.24281579,3146.1,3144.1,1.38969363]
[1768296257347,1.45809668,3145.9,3144.2,1.38969363]
[1768296257941,1.46072437,3145.9,3144.2,1.38969363]
[1768296258136,0.00262769,3145.9,3144.2,1.38969363]
[1768296258342,0.00262769,3145.9,3144.5,1.38969363]
[1768296259744,0.00262769,3145.9,3144.7,2.84779031]
[1768296259946,0.00262769,3145.9,3144.8,1.38969363]
[1768296260744,1.32364116,3146.7,3144.8,1.38969363]
[1768296261853,1.32364116,3146.7,3145.1,1.38969363]
[1768296261854,0.00407326,3146.7,3145.1,1.38969363]
[1768296262042,0.00407326,3146.7,3145.3,1.38969363]
[1768296263342,0.00407326,3146.7,3145.1,0.00346181]
[1768296263343,0.00407326,3146.7,3145.5,1.38969363]
[1768296263549,0.00407326,3146.7,3145.7,2.84779031]
[1768296263947,4.80008668,3147.9,3146.1,1.38969363]
[1768296264147,0.86983525,3147.8,3146.1,1.38969363]
[1768296264348,1.45809668,3147.3,3146.1,1.38969363]
[1768296264549,1.45809668,3147.3,3145.6,1.38969363]
[1768296264945,0.00387466,3147.3,3145.8,1.38969363]
[1768296265544,0.00387466,3147.3,3146.1,1.38969363]
[1768296267249,0.00387466,3147.3,3145.8,0.15909]
[1768296267956,0.00387466,3147.3,3146.1,1.38969363]
[1768296268553,0.00387466,3147.3,3145.8,0.15909]
[1768296268554,0.00387466,3147.3,3145.8,1.54878363]
[1768296269149,0.00387466,3147.3,3146.1,1.38969363]
[1768296270549,0.00387466,3147.3,3146.3,1.38969363]
[1768296277055,0.00387466,3147.3,3146.5,1.42615701]
[1768296277856,3.183,3148.3,3146.8,1.42615701]
[1768296278862,3.18549334,3148.3,3146.8,1.42615701]
[1768296279066,3.18549334,3148.3,3146.3,1.42615701]
[1768296279067,1.45809668,3148.1,3146.3,1.42615701]
[1768296279361,1.45809668,3148.1,3146.3,1.58522701]
[1768296280151,3.18549334,3148.3,3146.4,0.15907]
[1768296280358,3.18549334,3148.3,3146.7,1.42615701]
[1768296280671,1.45809668,3148.2,3146.7,1.42615701]
[1768296280966,3.18549334,3148.3,3146.7,1.42615701]
[1768296283971,0.00249334,3148.3,3146.7,1.42615701]
[1768296284356,0.00249334,3148.3,3146.7,1.58520701]
[1768296284562,0.00249334,3148.3,3147.0,1.42615701]
[1768296288369,0.00249334,3148.3,3146.9,0.15904]
[1768296288771,0.00249334,3148.3,3146.9,1.58519701]
[1768296292277,0.87505901,3148.2,3146.9,1.58519701]
[1768296292483,0.00249334,3148.3,3146.9,1.58519701]
[1768296292669,0.87503237,3148.2,3146.9,1.58519701]
[1768296292980,0.00249334,3148.3,3146.9,1.58519701]
[1768296293179,0.87503237,3148.2,3146.9,1.58519701]
[1768296293377,0.00249334,3148.3,3146.9,1.58519701]
[1768296293576,0.87558823,3148.2,3146.9,1.58519701]
[1768296293884,0.00249334,3148.3,3146.9,1.58519701]
[1768296294075,0.87558855,3148.2,3146.9,1.58519701]
[1768296294379,0.00249334,3148.3,3146.9,1.58519701]
[1768296294678,0.87565497,3148.2,3146.9,1.58519701]
[1768296294875,0.87566041,3148.1,3146.9,1.42615701]
[1768296295074,0.00249334,3148.3,3146.9,1.42615701]
[1768296295375,0.87581782,3148.2,3146.9,1.42615701]
[1768296295683,0.87581782,3148.1,3146.9,1.42615701]
[1768296295979,1.42621496,3148.3,3146.4,1.58522701]
[1768296296176,0.87586962,3148.2,3146.4,1.58522701]
[1768296296378,0.87586962,3148.1,3146.4,1.58522701]
[1768296296688,1.42621496,3148.3,3146.4,1.58522701]
[1768296296689,0.87586962,3148.0,3146.4,1.58522701]
[1768296296887,1.42621496,3148.3,3146.4,1.58522701]
[1768296297180,0.87595083,3148.2,3146.4,1.58522701]
[1768296297386,0.87595083,3148.1,3146.4,1.58522701]
[1768296297572,0.00249334,3148.3,3146.7,0.15905]
[1768296297772,0.87606987,3148.2,3146.8,1.58519701]
[1768296297975,0.00249334,3148.3,3146.8,1.58519701]
[1768296298175,0.8760454,3148.2,3146.8,1.58519701]
[1768296298370,0.87613135,3148.1,3146.8,1.42615701]
[1768296298581,0.00249334,3148.3,3146.8,1.42615701]
[1768296298781,0.87613859,3148.2,3146.8,1.42615701]
[1768296299082,0.00249334,3148.3,3146.8,1.42615701]
[1768296299269,0.87622202,3148.2,3146.8,1.42615701]
[1768296299472,0.00249334,3148.3,3146.8,1.42615701]
[1768296299683,0.87622277,3148.2,3146.8,1.42615701]
[1768296299881,0.00249334,3148.3,3146.8,1.42615701]
[1768296300180,0.87622287,3148.2,3146.8,1.42615701]
[1768296300382,0.00249334,3148.3,3146.8,1.42615701]
[1768296300684,0.00249334,3148.3,3146.4,0.15906]
[1768296300685,0.87630038,3148.2,3146.4,1.58521701]
[1768296300984,0.87630038,3148.1,3146.4,1.58521701]
[1768296301185,0.87630038,3148.0,3146.4,1.58521701]
[1768296301383,0.87646766,3147.9,3146.4,1.42615701]
[1768296301580,1.64992354,3147.7,3146.0,1.58524701]
[1768296301774,0.87646766,3147.6,3146.0,1.58524701]
[1768296302085,0.87646766,3147.5,3146.0,1.42615701]
[1768296302286,0.87646766,3147.4,3145.6,1.42615701]
[1768296302483,0.87646766,3147.3,3145.6,1.42615701]
[1768296302682,2.30018928,3147.2,3145.2,1.42615701]
[1768296302884,1.64992354,3146.9,3145.2,1.42615701]
[1768296303087,0.87646766,3146.8,3145.2,1.42615701]
[1768296303284,1.64992354,3146.9,3145.2,1.42615701]
[1768296303285,0.87579579,3146.7,3145.2,1.42615701]
[1768296303588,0.87511705,3146.6,3145.2,1.42615701]
[1768296303776,3.07364516,3146.9,3145.2,1.42615701]
[1768296303982,1.64992354,3146.0,3144.3,1.42615701]
[1768296304183,2.29886824,3145.9,3143.4,1.42615701]
[1768296304381,0.87514662,3145.8,3143.4,1.42615701]
[1768296305080,0.87845447,3145.8,3143.4,1.42933431]
[1768296305280,0.87514662,3145.7,3143.4,1.42933431]
[1768296305482,0.00330785,3145.8,3143.4,1.42933431]
[1768296306286,0.87233739,3145.7,3143.6,1.38396135]
[1768296306486,1.51058853,3145.8,3143.6,1.38396135]
[1768296307386,0.00330785,3145.8,3143.6,3.03388489]
[1768296307588,0.00330785,3145.8,3143.7,1.38396135]
[1768296308189,1.64992354,3145.1,3143.4,0.0031773]
[1768296308385,3.15720422,3145.1,3143.4,0.0031773]
[1768296308780,1.50728068,3145.1,3143.4,0.0031773]
[1768296310184,6.05828068,3145.0,3143.4,0.0031773]
[1768296310489,1.50728068,3144.8,3143.4,0.0031773]
[1768296311287,1.64992354,3144.3,3142.4,1.38396135]
[1768296311491,3.15720422,3144.3,3142.4,1.38396135]
[1768296312488,3.15720422,3144.3,3142.4,1.38754956]
[1768296313096,1.50728068,3144.2,3142.4,1.38754956]
[1768296314888,3.18462207,3143.9,3142.4,0.00358821]
[1768296318002,1.53469853,3143.9,3142.4,0.00358821]
[1768296318203,1.37,3144.0,3142.4,1.39503183]
[1768296320194,3.183,3144.4,3142.4,1.39503183]
[1768296320405,3.183,3144.4,3142.7,1.39144362]
[1768296326713,1.53469853,3144.9,3142.7,1.55069362]
[1768296327022,4.554,3145.1,3142.9,1.55068362]
[1768296327523,7.73862207,3145.1,3142.9,1.55068362]
[1768296328918,7.73862207,3145.1,3143.1,1.39144362]
[1768296330219,1.53469853,3145.1,3143.1,1.39144362]
[1768296330521,3.184,3145.5,3143.3,1.55066362]
[1768296330714,4.554,3145.5,3143.3,1.55066362]
[1768296331018,1.64992354,3145.4,3143.3,1.55066362]
[1768296331220,3.18462207,3145.4,3143.3,1.55066362]
[1768296331421,1.53469853,3144.9,3142.7,1.39144362]
[1768296331624,1.53469853,3144.9,3142.7,1.55069362]
[1768296332534,0.87293989,3144.8,3143.0,1.39144362]
[1768296332714,1.69381853,3145.3,3143.2,1.39144362]
[1768296332915,0.8763835,3145.2,3143.2,1.39144362]
[1768296333123,0.8763835,3145.1,3143.2,1.55067362]
[1768296333418,0.87747336,3145.0,3143.2,1.55067362]
[1768296333622,2.41217189,3144.9,3143.2,1.55067362]
[1768296333825,0.87747336,3144.8,3143.2,1.39144362]
[1768296334023,0.87747336,3144.8,3142.4,0.16284821]
[1768296334024,1.53469853,3144.7,3142.5,1.39144362]
[1768296334325,0.87747336,3144.6,3142.5,1.39144362]
[1768296334523,2.41217189,3144.6,3142.5,1.39144362]
[1768296334823,2.38920106,3144.5,3142.5,1.39144362]
[1768296335022,0.87747336,3144.4,3142.5,1.39144362]
[1768296339431,2.38920106,3144.4,3142.5,1.39144362]
[1768296339622,0.87747336,3144.3,3142.5,1.39144362]
[1768296340826,2.38920106,3144.3,3142.5,1.39144362]
[1768296341028,0.87747336,3144.2,3142.5,1.39144362]
[1768296341227,2.38920106,3144.2,3142.5,1.39144362]
[1768296341527,0.87747336,3144.1,3142.5,1.39144362]
[1768296346033,2.38920106,3144.1,3142.5,1.39144362]
[1768296346226,2.38920106,3144.0,3142.4,0.00358821]
[1768296346424,0.87747336,3143.9,3142.4,0.00358821]
[1768296347132,0.87747336,3143.9,3142.4,1.54158774]
[1768296347324,1.08132882,3143.6,3142.7,1.08132882]
[1768296348226,1.08132882,3143.2,3142.4,0.00358821]
[1768296348433,0.00251309,3143.2,3142.4,1.08491703]
[1768296350433,0.00251309,3143.2,3142.5,1.08132882]
[1768296350834,0.00251309,3143.2,3142.4,0.00358821]
[1768296351037,1.08384191,3143.2,3142.4,0.00358821]
[1768296351334,0.00251309,3143.2,3142.4,0.00358821]
[1768296353141,1.08132882,3143.1,3142.4,0.00358821]
[1768296353736,0.00251309,3143.2,3142.4,0.00358821]
[1768296353931,1.08132882,3143.1,3142.4,0.00358821]
[1768296354734,0.00251309,3143.2,3142.4,0.00358821]
[1768296354938,1.08132882,3143.1,3142.4,0.00358821]
[1768296355138,1.08132882,3142.9,3142.4,0.00358821]
[1768296355338,1.08132882,3142.9,3142.1,1.08132882]
[1768296356044,1.08132882,3143.1,3142.1,1.08132882]
[1768296356242,1.08132882,3143.1,3142.1,1.08486134]
[1768296357739,0.00251309,3143.2,3142.5,1.08132882]
[1768296357931,0.00251309,3143.2,3142.3,1.08132882]
[1768296358139,1.08132882,3143.0,3142.1,2.62286087]
[1768296359344,1.08384191,3143.2,3142.1,2.62286087]
[1768296359744,1.08384191,3143.2,3142.3,1.08132882]
[1768296359941,0.00251309,3143.2,3142.5,1.08132882]
[1768296360347,1.368,3143.9,3142.3,1.08132882]
[1768296360348,1.5117277,3144.1,3142.7,2.61932835]
[1768296360550,1.08132882,3143.7,3142.7,2.61932835]
[1768296360740,1.08132882,3143.5,3142.2,1.53799953]
[1768296360940,1.08132882,3143.3,3142.4,1.08132882]
[1768296361349,1.08500456,3143.3,3142.2,1.53799953]
[1768296361649,1.08500456,3143.3,3142.5,1.08132882]
[1768296361841,0.00367574,3143.3,3142.5,1.08132882]
[1768296362243,0.00367574,3143.3,3143.1,1.08132882]
[1768296362442,1.08132882,3143.8,3142.9,1.08132882]
[1768296362637,1.368,3144.4,3142.9,1.08132882]
[1768296362843,1.08132882,3144.1,3143.1,1.08132882]
[1768296363448,1.0837602,3144.1,3143.1,1.08132882]
[1768296364841,1.0837602,3144.1,3142.9,1.44507176]
[1768296365045,1.0837602,3144.1,3143.0,1.08132882]
[1768296365753,1.08132882,3144.0,3143.0,1.08132882]
[1768296366743,0.00243138,3144.1,3143.6,2.52640058]
[1768296367146,0.00243138,3144.1,3143.6,1.44507176]
[1768296367353,0.00243138,3144.1,3143.4,1.08132882]
[1768296367753,1.08132882,3144.8,3143.9,1.08132882]
[1768296367954,4.26532882,3145.2,3143.7,2.52640058]
[1768296367955,1.08132882,3144.6,3143.7,2.52640058]
[1768296368357,1.08132882,3144.6,3143.7,1.08132882]
[1768296368750,1.08374647,3144.6,3143.7,1.08132882]
[1768296369056,0.00241765,3144.6,3143.7,1.08132882]
[1768296372353,1.08132882,3144.5,3143.7,1.08132882]
[1768296372553,1.08374647,3144.6,3143.7,1.08132882]
[1768296372954,1.08374647,3144.6,3143.3,1.44507176]
[1768296373156,1.08374647,3144.6,3143.6,1.08132882]
[1768296374651,1.08132882,3144.4,3143.3,1.44507176]
[1768296374851,1.08132882,3144.4,3143.5,1.08132882]
[1768296378161,1.08132882,3144.4,3143.6,1.08132882]
[1768296378756,1.08374647,3144.6,3143.6,1.08132882]
[1768296379059,0.00241765,3144.6,3144.0,1.08132882]
[1768296379261,0.00241765,3144.6,3143.8,1.08132882]
[1768296380553,0.00241765,3144.6,3144.4,1.08132882]
[1768296380753,1.08132882,3145.3,3144.4,1.08132882]
[1768296380956,1.08132882,3145.3,3144.2,1.48597396]
[1768296381157,1.08132882,3145.3,3144.2,2.56730278]
[1768296381464,1.08132882,3145.1,3144.2,2.56730278]
[1768296381857,1.083749,3145.1,3144.2,2.57072264]
[1768296382057,0.00242018,3145.1,3144.2,0.00341986]
[1768296382257,1.083749,3145.1,3144.2,1.08474868]
[1768296384661,0.00242018,3145.1,3144.4,1.08132882]
[1768296386063,1.08132882,3145.6,3144.6,2.56730278]
[1768296386470,1.08132882,3145.9,3144.8,1.08132882]
[1768296386768,1.08132882,3145.7,3144.8,1.08132882]
[1768296387070,1.08132882,3145.5,3144.6,2.56730278]
[1768296387470,1.08132882,3145.5,3144.3,0.15917]
[1768296387669,1.08132882,3145.5,3144.5,1.08132882]
[1768296390265,1.08132882,3145.5,3144.3,0.15917]
[1768296390469,1.08132882,3145.5,3144.6,1.08132882]
[1768296390967,1.08132882,3145.5,3144.3,1.64514396]
[1768296391173,1.08132882,3145.5,3144.5,1.08132882]
[1768296392069,0.00390433,3145.7,3144.5,1.08132882]
[1768296392268,1.08132882,3145.5,3144.5,1.08132882]
[1768296392472,0.00390433,3145.7,3145.1,1.08132882]
[1768296392664,0.00274977,3145.7,3145.1,1.08132882]
[1768296393572,0.00274977,3145.7,3144.7,1.08132882]
[1768296393768,1.08132882,3145.3,3144.3,1.48597396]
[1768296393964,1.08132882,3145.3,3144.4,1.08132882]
[1768296394366,1.08132882,3145.5,3144.4,1.08132882]
[1768296395168,1.08132882,3145.5,3144.3,1.48597396]
[1768296395370,1.08132882,3145.5,3144.6,1.08132882]
[1768296395567,0.00274977,3145.7,3144.6,1.08132882]
[1768296395770,1.08132882,3145.5,3144.6,1.08132882]
[1768296398280,1.08132882,3145.6,3144.6,1.08132882]
[1768296403284,1.08281914,3145.7,3144.3,1.08006937]
[1768296404383,0.00274977,3145.7,3144.4,1.43237329]
[1768296404587,0.00274977,3145.7,3144.4,2.51244266]
[1768296404979,0.00274977,3145.7,3144.4,1.43237329]
[1768296407293,0.00274977,3145.7,3144.5,1.08006937]
[1768296408392,0.00274977,3145.7,3144.5,2.51244266]
[1768296410097,0.88138308,3145.6,3144.5,2.51244266]
[1768296410295,0.00274977,3145.7,3144.5,2.51244266]
[1768296410487,0.88138276,3145.6,3144.5,2.51244266]
[1768296410689,0.00274977,3145.7,3144.5,2.51244266]
[1768296410889,0.88138258,3145.6,3144.5,2.51244266]
[1768296411192,0.00274977,3145.7,3144.5,2.51244266]
[1768296411393,0.88151497,3145.6,3144.5,2.51244266]
[1768296411593,0.00274977,3145.7,3144.5,2.51244266]
[1768296411792,0.88151554,3145.6,3144.5,2.51244266]
[1768296411994,0.00274977,3145.7,3144.5,2.51244266]
[1768296412194,0.88164667,3145.6,3144.5,2.51244266]
[1768296412385,0.00274977,3145.7,3144.5,2.51244266]
[1768296412582,0.88164668,3145.6,3144.5,2.51244266]
[1768296412782,0.00274977,3145.7,3144.5,1.43237329]
[1768296413000,0.88164674,3145.6,3144.5,2.51244266]
[1768296413203,0.00274977,3145.7,3144.5,2.51244266]
[1768296413496,0.88178415,3145.6,3144.5,2.51244266]
[1768296413698,0.00274977,3145.7,3144.5,2.51244266]
[1768296413894,0.88178415,3145.6,3144.5,2.51244266]
[1768296414197,0.00274977,3145.7,3144.5,2.51244266]
[1768296414388,0.88197278,3145.6,3144.5,2.51244266]
[1768296414582,0.00274977,3145.7,3144.5,1.43237329]
[1768296414782,0.88197278,3145.6,3144.5,2.51244266]
[1768296414987,0.00274977,3145.7,3144.5,2.51244266]
[1768296415191,0.88212502,3145.6,3144.5,2.51244266]
[1768296415391,0.00274977,3145.7,3144.5,2.51244266]
[1768296415594,0.88210911,3145.6,3144.5,2.51244266]
[1768296415799,0.00274977,3145.7,3144.5,2.51244266]
[1768296416101,0.88211176,3145.6,3144.5,1.43237329]
[1768296416295,0.00274977,3145.7,3144.5,1.43237329]
[1768296416484,0.88219192,3145.6,3144.5,1.43237329]
[1768296416682,0.88219192,3145.5,3144.5,1.43237329]
[1768296416891,0.00274977,3145.7,3144.5,1.43237329]
[1768296417197,0.88220705,3145.6,3144.5,1.43237329]
[1768296417397,0.00274977,3145.7,3144.5,1.43237329]
[1768296417589,0.88218724,3145.6,3144.5,1.43237329]
[1768296417785,0.00274977,3145.7,3144.5,1.43237329]
[1768296417989,0.88218802,3145.6,3144.5,1.43237329]
[1768296418189,0.00274977,3145.7,3144.5,1.43237329]
[1768296418399,0.88218866,3145.6,3144.5,1.43237329]
[1768296418696,0.00274977,3145.7,3144.5,1.43237329]
[1768296418897,0.88218946,3145.6,3144.5,1.43237329]
[1768296419094,0.00274977,3145.7,3144.5,1.43237329]
[1768296419290,0.88219013,3145.6,3144.5,1.43237329]
[1768296419485,0.00274977,3145.7,3144.5,1.43237329]
[1768296419697,0.88219009,3145.6,3144.5,1.43237329]
[1768296419891,0.00274977,3145.7,3144.5,1.43237329]
[1768296420087,0.88219031,3145.6,3144.5,1.43237329]
[1768296420295,0.00274977,3145.7,3144.5,1.43237329]
[1768296420495,0.88218512,3145.6,3144.5,1.43237329]
[1768296420694,0.00274977,3145.7,3144.5,1.43237329]
[1768296420897,0.88218473,3145.6,3144.7,1.08006937]
[1768296421101,0.00274977,3145.7,3145.0,1.08006937]
[1768296421299,0.00274977,3145.7,3144.8,1.43237329]
[1768296421998,1.08006937,3146.5,3144.8,1.43237329]
[1768296422191,0.88205378,3146.4,3145.0,1.43237329]
[1768296422391,0.88205378,3146.3,3145.3,1.43237329]